Cogmind - Beta 16 @@@ ROGUE MODE // 2025.11.07 @ 13:24:46 Player: Demo Result: Destroyed by B-86 Titan with Railgun Performance ------------- Evolutions (6) 3000 Regions Visited (9) 1800 Robots Destroyed (0) 0 Value Destroyed (0) 0 Prototype IDs (7) 140 Alien Tech Used (0) 0 Bonus (3125) 3125 TOTAL SCORE: 8065 Bonus ------- Pacifist 1825 Entered DSFs 500 Registered with UFD 300 Met Optimus in HQ 500 Cogmind --------- Core Integrity 0/1150 Matter 19/300 Energy 100/100 System Corruption 0% Temperature Cool (9) Movement Core (50) Location -4/Extension Parts ------- > --- POWER (2) -------- (None) > --- PROPULSION (6) --- (None) > --- UTILITY (9) ------ Improved Terrain Scan Processor Advanced Terrain Scan Processor Advanced Terrain Scan Processor > --- WEAPON (2) ------- (None) > --- INVENTORY (5) ---- Improved Gyrokinetic Inverter Experimental Sensor Array Peak State ------------ > --- POWER ------------ Light Angular Momentum Engine > --- PROPULSION ------- Cesium-ion Thruster Xenon Bombardment Thruster Xenon Bombardment Thruster Nuclear Pulse Thruster Nuclear Pulse Thruster Nuclear Pulse Thruster > --- UTILITY ---------- Experimental Terrain Scanner Improved Terrain Scan Processor Advanced Terrain Scan Processor Advanced Terrain Scan Processor > --- WEAPON ----------- Improved Datajack > --- INVENTORY -------- Experimental Sensor Array Bomb Drone Bay [Rating: 56] Favorites ----------- Power Light Angular Momentum Engine Engine Light Angular Momentum Engine Propulsion Light Treads Treads Light Treads Flight Unit Xenon Bombardment Thruster Utility Advanced Terrain Scan Processor Device Experimental Terrain Scanner Processor Advanced Terrain Scan Processor Protection Scrap Shield Weapon Improved Datajack Special Melee Weapon Improved Datajack Build | -11 -10 -10 -10 -9 -6 -6 -5 -4 -4 ------- Run | Yrd Mat Min Sub Scr Fac DSF Fac Fac Ext Slots Evolved 12 | . . . . . 8 . 2 2 . Power 1 | . . . . . 1 . . . . Propulsion 4 | . . . . . 4 . . . . Utility 7 | . . . . . 3 . 2 2 . Weapon . | . . . . . . . . . . Parts Attached 30 | 2 . 2 1 7 . 12 3 2 1 Power 2 | . . . . . . 2 . . . Engine 2 | . . . . . . 2 . . . Core . | . . . . . . . . . . Reactor . | . . . . . . . . . . Propulsion 15 | 2 . . . 2 . 10 . . 1 Treads 2 | 2 . . . . . . . . . Leg . | . . . . . . . . . . Wheel . | . . . . . . . . . . Hover . | . . . . . . . . . . Flight 13 | . . . . 2 . 10 . . 1 Utility 12 | . . 2 1 5 . . 2 2 . Device 5 | . . 2 . 3 . . . . . Storage . | . . . . . . . . . . Processor 6 | . . . . 2 . . 2 2 . Hackware . | . . . . . . . . . . Protection 1 | . . . 1 . . . . . . Artifact . | . . . . . . . . . . Weapon 1 | . . . . . . . 1 . . Energy Gun . | . . . . . . . . . . Energy Cannon . | . . . . . . . . . . Ballistic Gun . | . . . . . . . . . . Ballistic Cannon . | . . . . . . . . . . Launcher . | . . . . . . . . . . Special Weapon . | . . . . . . . . . . Impact Weapon . | . . . . . . . . . . Slashing Weapon . | . . . . . . . . . . Piercing Weapon . | . . . . . . . . . . Special Melee Weapon 1 | . . . . . . . 1 . . Unidentified Prototypes 2 | . . 2 . . . . . . . Parts Lost 20 | . . . 1 . . 6 7 1 5 Power 1 | . . . . . . . 1 . . Propulsion 12 | . . . . . . 5 4 1 2 Utility 6 | . . . 1 . . 1 1 . 3 Weapon 1 | . . . . . . . 1 . . Highest Loss Streak 8 | . . . 1 . . 6 7 8 5 To Critical Strikes . | . . . . . . . . . . Average Backups 2 | . . 1 3 4 4 4 2 2 2 Power . | . . . . . . . . . . Propulsion . | . . . . . . . . . 1 Utility 2 | . . 1 3 4 4 4 2 2 1 Weapon . | . . . . . . . . . . Tool/Special . | . . . . . . . . . . Unused Backups 4 | . . 1 . 2 . . . . 1 Power . | . . . . . . . . . . Propulsion 1 | . . . . . . . . . 1 Utility 3 | . . 1 . 2 . . . . . Weapon . | . . . . . . . . . . Tool/Special . | . . . . . . . . . . Average Slot Usage (%) 35 | . 28 28 40 40 26 33 55 26 26 Treads 17 | . 28 28 28 12 . . . . . Flight 6 | . . . . 13 13 22 26 6 3 Device 5 | . . . 9 12 6 1 5 5 1 Processor 4 | . . . . 1 6 6 12 15 21 Peak Build Rating 56 | 2 2 16 17 19 14 43 56 31 31 Average Rating 14 | 1 2 3 14 8 14 21 46 27 22 On Entrance 13 | . 2 2 4 4 14 14 38 27 31 Avg Prop Armor Cover (%) 30 | 41 41 41 25 32 . 32 4 11 . Naked Turns 1 | . . . . 1 . . . . . Heaviest Build 18 | . . 8 18 3 1 18 18 1 8 Greatest Support 40 | 3 3 3 40 9 9 35 29 12 6 Greatest Overweight (x) 2 | . . 2 2 . . . 1 . 2 Average Overweight (x) . | . . . . . . . . . . Largest Inventory Capacity 5 | 5 5 5 5 5 5 5 5 5 5 Average Capacity 5 | 5 5 5 5 5 5 5 5 5 5 Most Carried 5 | . . 5 5 5 5 5 5 4 4 Average Carried 3 | . . 2 3 4 5 5 2 3 2 Final Capacity 5 | 5 5 5 5 5 5 5 5 5 5 Final Carried 5 | . . 5 5 5 5 5 3 4 2 Class Distribution -------------------- 90% | Mutant 9% | Sprinter Dominant Class ---------------- Mutant | -10/Materials Mutant | -10/Mines Mutant | -10/Subcaves Mutant | -9/Scraptown Mutant | -6/Factory Mutant | -6/DSF Sprinter | -5/Factory Mutant | -4/Factory Mutant | -4/Extension Resources | -11 -10 -10 -10 -9 -6 -6 -5 -4 -4 ----------- Run | Yrd Mat Min Sub Scr Fac DSF Fac Fac Ext Matter Collected 174 | . . 116 50 . . . . . 8 Remotely . | . . . . . . . . . . Salvage Created . | . . . . . . . . . . Parts . | . . . . . . . . . . Haulers Intercepted . | . . . . . . . . . . Recyclers Shooed . | . . . . . . . . . . Parts Field Recycled . | . . . . . . . . . . Retrieved Matter . | . . . . . . . . . . Parts Self-Destructed 7 | . . . 7 . . . . . . Prevented . | . . . . . . . . . . Parts Restored . | . . . . . . . . . . Kills | -11 -10 -10 -10 -9 -6 -6 -5 -4 -4 ------- Run | Yrd Mat Min Sub Scr Fac DSF Fac Fac Ext Combat Hostiles Destroyed . | . . . . . . . . . . Classes Destroyed . | . . . . . . . . . . Best Kill Streak . | . . . . . . . . . . Combat Bots Only . | . . . . . . . . . . Max Kills in Single Turn . | . . . . . . . . . . Gunslinging . | . . . . . . . . . . Exploded . | . . . . . . . . . . Melee . | . . . . . . . . . . Uniques/NPCs Destroyed . | . . . . . . . . . . Combat | -11 -10 -10 -10 -9 -6 -6 -5 -4 -4 -------- Run | Yrd Mat Min Sub Scr Fac DSF Fac Fac Ext Hostile Shots Fired 198 | . 5 . 20 . . 39 28 6 100 Missed 77 | . 2 . 7 . . 19 13 2 34 Hits 121 | . 3 . 13 . . 20 15 4 66 Melee 3 | . . . . . . 2 1 . . Projectile 118 | . 3 . 13 . . 18 14 4 66 Critical Strikes 8 | . . . . . . 1 3 1 3 Damage Taken 2705 | . 51 . 264 . . 544 308 96 1442 Core 1548 | . 44 . . . . 280 50 71 1103 Absorbed by Shields 11 | . . . . . . . . . 11 Core Remaining (%) 86 | 100 . . . 82 . 67 95 . . Volleys Fired . | . . . . . . . . . . Largest . | . . . . . . . . . . Hottest . | . . . . . . . . . . Shots Fired . | . . . . . . . . . . Gun . | . . . . . . . . . . Cannon . | . . . . . . . . . . Launcher . | . . . . . . . . . . Special . | . . . . . . . . . . Kinetic . | . . . . . . . . . . Thermal . | . . . . . . . . . . Explosive . | . . . . . . . . . . Electromagnetic . | . . . . . . . . . . Robot Hit Streak . | . . . . . . . . . . Robot Miss Streak . | . . . . . . . . . . Penetration Max . | . . . . . . . . . . Secondary Targets . | . . . . . . . . . . Shots Hit Robots . | . . . . . . . . . . Core Hits 1 | . . . 1 . . . . . . Critical Kills . | . . . . . . . . . . Critical Parts Destroyed . | . . . . . . . . . . Critical Strikes . | . . . . . . . . . . Melee Attacks . | . . . . . . . . . . Impact . | . . . . . . . . . . Slashing . | . . . . . . . . . . Piercing . | . . . . . . . . . . Sneak Attacks . | . . . . . . . . . . Combat Hostiles . | . . . . . . . . . . Follow-up Attacks . | . . . . . . . . . . Damage Inflicted 4 | . . . 4 . . . . . . Guns . | . . . . . . . . . . Cannons . | . . . . . . . . . . Explosions . | . . . . . . . . . . Melee . | . . . . . . . . . . Ramming 4 | . . . 4 . . . . . . Kinetic . | . . . . . . . . . . Thermal . | . . . . . . . . . . Explosive . | . . . . . . . . . . Electromagnetic . | . . . . . . . . . . Impact . | . . . . . . . . . . Slashing . | . . . . . . . . . . Piercing . | . . . . . . . . . . Highest Corruption 9 | . . . . . . . 9 . . Average Corruption 9 | . . . . . . . 9 . . Corruption Purged . | . . . . . . . . . . Corruption Blocked . | . . . . . . . . . . Effects 2 | . . . . . . . 2 . . Matter Fused 1 | . . . . . . . 1 . . Energy Discharges 1 | . . . . . . . 1 . . Overload Shots . | . . . . . . . . . . Overflow Damage . | . . . . . . . . . . Projectiles . | . . . . . . . . . . Explosions . | . . . . . . . . . . Melee . | . . . . . . . . . . Knockbacks . | . . . . . . . . . . Impact . | . . . . . . . . . . Kinetic . | . . . . . . . . . . Secondary . | . . . . . . . . . . Self-Inflicted Damage . | . . . . . . . . . . Shots . | . . . . . . . . . . Rammed 2 | . . . 2 . . . . . . Targets Rammed 2 | . . . 2 . . . . . . Kicked . | . . . . . . . . . . Crushed . | . . . . . . . . . . Highest Temperature . | . . . . . . . . . . Average Temperature . | . . . . . . . . . . Received Heat Transfer 304 | . 6 . . . . . 45 36 217 Siege Activations . | . . . . . . . . . . Martial Activations . | . . . . . . . . . . Shielding Activations . | . . . . . . . . . . Robots Disrupted . | . . . . . . . . . . Combat Hostiles . | . . . . . . . . . . Robots Corrupted . | . . . . . . . . . . Combat Hostiles . | . . . . . . . . . . Parts Fried . | . . . . . . . . . . Impact Corruptions . | . . . . . . . . . . Robots Melted . | . . . . . . . . . . Combat Hostiles . | . . . . . . . . . . Parts Melted . | . . . . . . . . . . Heat Transferred . | . . . . . . . . . . Parts Sabotaged . | . . . . . . . . . . Parts Stolen . | . . . . . . . . . . Parts Stripped . | . . . . . . . . . . Power Chain Reactions . | . . . . . . . . . . Alert | -11 -10 -10 -10 -9 -6 -6 -5 -4 -4 ------- Run | Yrd Mat Min Sub Scr Fac DSF Fac Fac Ext Maximum Alert Level . | . . . . . . . . . . Low Security (%) 100 | 100 100 100 . . 100 100 100 100 100 Level 1 . | . . . . . . . . . . Level 2 . | . . . . . . . . . . Level 3 . | . . . . . . . . . . Level 4 . | . . . . . . . . . . Level 5 . | . . . . . . . . . . High Security . | . . . . . . . . . . Max Security . | . . . . . . . . . . Peak Influence 62 | . . . . . . 15 40 30 62 Initial 16 | . . . . . . . . . 16 Average 3 | . . . . . . 2 9 6 14 Influence Increases 269 | . . . . . . 15 90 67 97 Successful Hack 14 | . . . . . . . . 7 7 Partial Spotted 60 | . . . . . . . . 45 15 Lose Combat Pursuer 195 | . . . . . . 15 90 15 75 Influence Decreases 217 | . . . . . . 15 90 32 80 Entered New Map 19 | . . . . . . . . . 19 Time Decay 57 | . . . . . . . 10 27 20 Lost Part 86 | . . . . . . 15 40 5 26 Lost Ally 55 | . . . . . . . 40 . 15 Squads Dispatched 11 | . 1 . . . . 1 2 4 3 Investigation 7 | . . . . . . . . 4 3 Extermination 1 | . . . . . . . 1 . . Reinforcement 3 | . 1 . . . . 1 1 . . Assault . | . . . . . . . . . . Garrison . | . . . . . . . . . . Intercept . | . . . . . . . . . . Searches Triggered . | . . . . . . . . . . Construction Impeded . | . . . . . . . . . . Haulers Reinforced . | . . . . . . . . . . Active Scanning Responses . | . . . . . . . . . . Cargo Convoy Interrupts . | . . . . . . . . . . Stealth | -11 -10 -10 -10 -9 -6 -6 -5 -4 -4 --------- Run | Yrd Mat Min Sub Scr Fac DSF Fac Fac Ext Distress Signals 2 | . . . . . . . 2 . . Communications Jammed . | . . . . . . . . . . Distress Signals . | . . . . . . . . . . Times Spotted 57 | . 6 2 2 . . 6 21 2 18 Peak Tracking Total 12 | . 5 1 2 . . 5 12 2 12 Tactical Retreats 5 | . . . . . . 1 1 1 2 Traps | -11 -10 -10 -10 -9 -6 -6 -5 -4 -4 ------- Run | Yrd Mat Min Sub Scr Fac DSF Fac Fac Ext Traps Triggered 2 | . 1 . . . . 1 . . . Indirectly . | . . . . . . . . . . Trap Hack Attempts . | . . . . . . . . . . Triggered . | . . . . . . . . . . Disarmed . | . . . . . . . . . . Reprogrammed . | . . . . . . . . . . Reused . | . . . . . . . . . . Traps Extracted . | . . . . . . . . . . Installed . | . . . . . . . . . . Triggered . | . . . . . . . . . . Machines | -11 -10 -10 -10 -9 -6 -6 -5 -4 -4 ---------- Run | Yrd Mat Min Sub Scr Fac DSF Fac Fac Ext Machines Disabled . | . . . . . . . . . . Max in Single Turn . | . . . . . . . . . . Machines Repaired . | . . . . . . . . . . Machines Dismantled . | . . . . . . . . . . Machines Sabotaged . | . . . . . . . . . . Overloaded Fab Kills . | . . . . . . . . . . Hacking | -11 -10 -10 -10 -9 -6 -6 -5 -4 -4 --------- Run | Yrd Mat Min Sub Scr Fac DSF Fac Fac Ext Machines Accessed 12 | . . 1 . 1 1 . 1 5 3 Terminals 9 | . . . . . 1 . 1 4 3 Fabricators . | . . . . . . . . . . Repair Stations . | . . . . . . . . . . Recycling Units 1 | . . . . . . . . 1 . Scanalyzers . | . . . . . . . . . . Garrison Access . | . . . . . . . . . . Total Hacks 31 | . . 1 . 5 2 . 2 12 9 Successful 11 | . . 1 . 5 1 . 1 2 1 Failed 20 | . . . . . 1 . 1 10 8 Catastrophic 9 | . . . . . . . 1 6 2 Database Lockouts . | . . . . . . . . . . Manual 11 | . . . . . . . 2 9 . Terminals 23 | . . . . . 2 . 2 10 9 Fabricators . | . . . . . . . . . . Repair Stations . | . . . . . . . . . . Recycling Units 2 | . . . . . . . . 2 . Scanalyzers . | . . . . . . . . . . Garrison Access . | . . . . . . . . . . Terminal Hacks 10 | . . 1 . 5 1 . . 2 1 Robot Analysis 5 | . . . . 5 . . . . . Open Door 2 | . . 1 . . . . . . 1 Open DSF 1 | . . . . . 1 . . . . Branch Access Points 1 | . . . . . . . . 1 . Emergency Access Points 1 | . . . . . . . . 1 . Fabricator Hacks . | . . . . . . . . . . Repair Station Hacks . | . . . . . . . . . . Recycling Unit Hacks . | . . . . . . . . . . Scanalyzer . | . . . . . . . . . . Garrison Access Hacks . | . . . . . . . . . . Unauthorized Hacks 1 | . . . . . . . 1 . . Terminals 1 | . . . . . . . 1 . . Botnet 1 | . . . . . . . 1 . . Fabricators . | . . . . . . . . . . Repair Stations . | . . . . . . . . . . Recycling Units . | . . . . . . . . . . Scanalyzers . | . . . . . . . . . . Garrison Access . | . . . . . . . . . . Data Cores Recovered . | . . . . . . . . . . Used . | . . . . . . . . . . Hacking Detections 10 | . . . . . 1 . 1 5 3 Full Trace Events 7 | . . . . . . . . 4 3 Feedback Events . | . . . . . . . . . . Feedback Blocked . | . . . . . . . . . . Robot Schematics Acquired . | . . . . . . . . . . Robots Built . | . . . . . . . . . . Authchips . | . . . . . . . . . . Time . | . . . . . . . . . . Total Robot Build Rating . | . . . . . . . . . . Part Schematics Acquired . | . . . . . . . . . . Parts Built . | . . . . . . . . . . Authchips . | . . . . . . . . . . Time . | . . . . . . . . . . Total Part Build Rating . | . . . . . . . . . . Part Studies Acquired . | . . . . . . . . . . Parts Repaired . | . . . . . . . . . . Time . | . . . . . . . . . . Parts Recycled . | . . . . . . . . . . Recycled Matter . | . . . . . . . . . . Retrieved Matter . | . . . . . . . . . . Retrieved Components . | . . . . . . . . . . Parts Scanalyzed . | . . . . . . . . . . Part Schematics Acquired . | . . . . . . . . . . Parts Damaged . | . . . . . . . . . . Bothacking | -11 -10 -10 -10 -9 -6 -6 -5 -4 -4 ------------ Run | Yrd Mat Min Sub Scr Fac DSF Fac Fac Ext Used RIF Installer . | . . . . . . . . . . Robots Hacked . | . . . . . . . . . . Non-combat . | . . . . . . . . . . Combat . | . . . . . . . . . . Robot Hacks Applied . | . . . . . . . . . . Relay Couplers Released . | . . . . . . . . . . Fabnet Peak Effective % . | . . . . . . . . . . Robots Rewired . | . . . . . . . . . . Allies Hacked . | . . . . . . . . . . Hacks Repelled . | . . . . . . . . . . Allies | -11 -10 -10 -10 -9 -6 -6 -5 -4 -4 -------- Run | Yrd Mat Min Sub Scr Fac DSF Fac Fac Ext Total Allies 1 | . . . . . . . . . 1 Largest Group 1 | . . . . . . . . . 1 Highest-Rated Group 159 | . . . . . . . . . 159 Highest-Rated Ally 159 | . . . . . . . . . 159 Total Orders 5 | . . . 5 . . . . . . EXPLORE 3 | . . . 3 . . . . . . RETURN 2 | . . . 2 . . . . . . Ally Attacks 8 | . . . 5 . . . 1 . 2 Total Damage . | . . . . . . . . . . Kills . | . . . . . . . . . . Allies Corrupted . | . . . . . . . . . . Allies Melted . | . . . . . . . . . . Intel | -11 -10 -10 -10 -9 -6 -6 -5 -4 -4 ------- Run | Yrd Mat Min Sub Scr Fac DSF Fac Fac Ext Active Infowar (turns) 220 | . . . . . . . 95 98 27 Terrain 220 | . . . . . . . 95 98 27 Robot Analysis Total 5 | . . . . 5 . . . . . Derelict Logs Recovered 2 | . . 1 1 . . . . . . Drone Launches 27 | . . . 22 . . . 2 . 3 Drone Recoveries 17 | . . . 17 . . . . . . Exploration | -11 -10 -10 -10 -9 -6 -6 -5 -4 -4 ------------- Run | Yrd Mat Min Sub Scr Fac DSF Fac Fac Ext Turns Passed 1243 | 13 35 368 319 171 3 65 98 98 73 Spaces Moved 1745 | 21 69 402 118 366 7 95 267 236 164 Core 829 | 21 69 402 68 190 . 33 . . 46 Treads 50 | . . . 50 . . . . . . Legs . | . . . . . . . . . . Wheels . | . . . . . . . . . . Hover . | . . . . . . . . . . Flight 866 | . . . . 176 7 62 267 236 118 Fastest Speed 22 | 50 50 50 50 34 34 22 27 37 35 Average Speed 48 | 50 50 50 133 42 34 38 30 39 41 Slowest Speed 160 | 50 50 150 160 50 34 50 117 40 150 Overloaded Moves . | . . . . . . . . . . Propulsion Burnouts . | . . . . . . . . . . Robots Hopped 16 | . . . . . . 2 6 3 5 Potential Cave-ins . | . . . . . . . . . . Cave-ins Triggered . | . . . . . . . . . . Exploration Rate (%) 39 | 3 24 95 61 33 . 87 10 8 36 Regions Visited 9 Branch Regions 4 Pre-discovered Areas 1 | . . . 1 . . . . . . Known Exits Taken 2 | . . . . . 1 . . 1 . Unknown Exits Taken 6 | 1 1 1 1 1 . . 1 . . Scrap Searched 1 | . . 1 . . . . . . . Spaces Dug . | . . . . . . . . . . Terrain Destroyed . | . . . . . . . . . . Melee . | . . . . . . . . . . Projectile . | . . . . . . . . . . AOE . | . . . . . . . . . . Terrain Rammed . | . . . . . . . . . . Walls Destroyed . | . . . . . . . . . . Machines Disabled . | . . . . . . . . . . Actions | -11 -10 -10 -10 -9 -6 -6 -5 -4 -4 --------- Run | Yrd Mat Min Sub Scr Fac DSF Fac Fac Ext Total 2108 | 22 68 567 277 380 6 116 275 235 162 Wait 332 | . . 158 153 . . 11 9 . 1 Move 1704 | 20 68 401 117 365 6 90 254 229 154 Hop 16 | . . . . . . 2 6 3 5 Pick Up 6 | . . 3 . 2 . . . 1 . Fast Attach 27 | 2 . 2 1 6 . 11 2 2 1 Attach 6 | . . . 2 . . . 3 . 1 Detach 5 | . . 2 2 . . . 1 . . Swap 2 | . . . . 1 . 1 . . . Drop 8 | . . 1 . 6 . 1 . . . Fire . | . . . . . . . . . . Melee . | . . . . . . . . . . Ram . | . . . . . . . . . . Kick . | . . . . . . . . . . Crush 2 | . . . 2 . . . . . . Escape Stasis . | . . . . . . . . . . Rewire . | . . . . . . . . . . Trap . | . . . . . . . . . . Miscellaneous . | . . . . . . . . . . Route ------- -11/Scrapyard -10/Materials (discovered 2 exits: [*Mat] / *Min) -10/Mines (discovered 3 exits: [*Mat x2] / [*Sub]) -10/Subcaves -9/Scraptown -6/Factory -6/DSF -5/Factory -4/Factory (discovered 4 exits: Upp x2 / *Ext x2) -4/Extension History --------- Turn | Location | Event 7 | -11/Scrapyard | Discovered new exit (range 15) 14 | -11/Scrapyard | Entered Materials 30 | -10/Materials | Discovered new exit (range 12) 44 | -10/Materials | Discovered new exit (range 10) 49 | -10/Materials | Entered Mines 67 | -10/Mines | Joined a pair of Derelicts in attacking an 0b10 outpost 90 | -10/Mines | Learned Materials security intel 139 | -10/Mines | Found the Drone Emporium 141 | -10/Mines | Found Prototype Device 141 | -10/Mines | Identified Bomb Drone Bay 289 | -10/Mines | Discovered new exit (range 8) 317 | -10/Mines | Build established: Mutant 319 | -10/Mines | Found a damaged Exp. Sensor Array with a note attached 321 | -10/Mines | Found Prototype Device 321 | -10/Mines | Identified Exp. Sensor Array 353 | -10/Mines | Discovered new exit (range 6) 415 | -10/Mines | Discovered new exit (range 5) 417 | -10/Mines | Entered Subcaves 418 | -10/Subcaves | Approached by a straggling Scientist 419 | -10/Subcaves | Learned location of Zion (-6) 630 | -10/Subcaves | Lost 3 allies 720 | -10/Subcaves | A swath of the cavern ceiling suddenly collapsed 736 | -10/Subcaves | Entered Scraptown 770 | -9/Scraptown | Visited UFD Registry 770 | -9/Scraptown | Registered with UFD as "Spikewarp" 785 | -9/Scraptown | Visited Analyses Database 799 | -9/Scraptown | Visited Junk Repository 835 | -9/Scraptown | Visited Junk Repository 861 | -9/Scraptown | Visited Infowarlord's Domain 864 | -9/Scraptown | Found Exp. Terrain Scanner 886 | -9/Scraptown | Met Optimus 886 | -9/Scraptown | Accepted into 0bPrime 905 | -9/Scraptown | Discovered new exit (range 5) 907 | -9/Scraptown | Entered Factory 907 | -6/Factory | Evolved 8 slots: Power x1, Propulsion x4, Utility x3 910 | -6/Factory | Identified exit to DSF 910 | -6/Factory | Entered DSF 928 | -6/DSF | Discovered new exit (range 15) 938 | -6/DSF | Additional patrols routed to DSF 975 | -6/DSF | Entered Factory 975 | -5/Factory | Evolved 2 slots: Utility x2 1002 | -5/Factory | Lost 6 parts (5n1u) 1040 | -5/Factory | Spotted B-75 Beast 1059 | -5/Factory | Discovered new exit (range 27) 1073 | -5/Factory | Entered another Factory area 1073 | -4/Factory | Evolved 2 slots: Utility x2 1110 | -4/Factory | Identified exit to Upper Caves 1110 | -4/Factory | Identified exit to Extension 1129 | -4/Factory | Lost 8 parts (1p5n1u1w) 1171 | -4/Factory | Entered Extension 1204 | -4/Extension | Core integrity fell below 50% 1222 | -4/Extension | Rescued A7 1236 | -4/Extension | Spotted B-86 Titan 1238 | -4/Extension | Spotted B-86 Titan 1241 | -4/Extension | Core integrity fell below 20% 1244 | -4/Extension | Destroyed by B-86 Titan with Railgun Last Messages --------------- 01220_ Connecting with Door Terminal... >>Open(Door) Sealed Heavy Doors opened. 01220_ ALERT: Suspicious activity at Terminal E004. Dispatching Investigation squad. 01222_ A7: "I've been trapped here for some time now, I should probabl##AID::LRC-V3##I suddenly feel like you could use my help. Lead on." 01237_ VTOL Module destroyed. 01239_ Penetrated by Slug. 01239_ Slug penetrates Machine. 01240_ Penetrated by Slug. 01240_ Slug penetrates Wall. 01240_ Machine disabled. 01240_ Slug penetrates Wall. 01243_ Penetrated by Slug. 01243_ Adv. Terrain Scan Processor destroyed. 01243_ Critical hit (Blast). 01243_ Slug penetrates B-86 Titan. 01244_ Knocked back. Map ----- +----------------------------------------------------+ | ??????????????????????# #????????????????????????? | | ??????????????????????# #????????????????????????? | | ??????????????????????# #????????????????????????? | | ??????????????????????# #????????????????????????? | | ??????????????????????# #????????????????????????? | | ??????????????????????# #????????????????????????? | | ??????????????????????# #????????????????????????? | | ??????????????????????# #????????????????????????? | | ??????????????????????# #????????????????????????? | | ??????????????????????#%#????????????????????????? | | ????????????????????### #??##?##?????????????????? | | ????????????????????#"# ### ## ### ??????????????? | | ????????????????????#"" ""Y "" ""????????????? | | ????????????????????# " Y " " ????????????? | | ????????????????????# #???????????? | | ????????????????????# u#???????????? | | ????????############# % #???????????? | | ??????? % A ??????????? | | ??????? ??????????? | | ??????? ??????????? | | ??????? ?????????? | | ??????? BB ?????????? | | ????????############# BB BB #???????????? | | ???????????????????## BB #???????????? | | ???????????????????#; #???????????? | | ???????????????????## %%@ #???????????? | | ????????????????????# #???????????? | | ????????????????????######T#"""#######???????????? | | ??????????????????????????##?????????????????????? | | ?????????????????????????????????????????????????? | | | | | | | | | | | | | | | | | | | | | | | | | | | | | | | | | | | | | | | | | +----------------------------------------------------+ Best States ------------- Heat Dissipation 51 Energy Generation 31 Energy Capacity 200 Matter Stores 216 Matter Capacity 300 Sight Range 16 Terrain Scan Range 30 Terrain Scan Density 710 Armor Coverage 800 Evasion (%) 64 Recoil Reduction 2 Item Schematics ----------------- None Robot Schematics ------------------ None Fabricated ------------ Nothing Repaired ---------- Nothing Studied --------- None Alien Tech Used ----------------- None Achievements -------------- None Challenges ------------ None Game ------ Seed TargetTechTurbovents Manual? 0 Play Time 00:12:07 Cumulative 383.3 hours Start 2025.11.07 @ 13:13:29 End 2025.11.07 @ 13:24:46 Sessions 1 Manual Loads 0 Difficulty Rogue Special Mode None Game No. 349 Rogue 349 Adventurer 0 Explorer 0 Win Type - Total 3 Types 2/1/0/0/0/0/0/0/0/0 Lore% 84 Gallery% 83 Achievement% 61 Wizard Run 0 Options --------- Layout 1 ASCII 0 Keyboard 0 Movement Numpad Keybinds 0 Fullscreen 1 Font 24/Smallcaps Map View 50x35 Zoom Use 0% Tactical HUD 1 Map Filters NONE Filters NONE Steam 1 RUN: bfc9333a-20ba-419d-ace1-fed390cb574e